bitfinex/quotes_SOLUSD_20250722
["timestamp","ask_amount","ask_price","bid_price","bid_amount"]
[1753210263635,36.18,201.8,201.76,4.95638382]
[1753210266338,7.4226,201.88,201.76,47.05734337]
[1753210266559,7.4226,201.88,201.82,9.8976791]
[1753210266560,36.2,201.87,201.82,9.8976791]
[1753210266732,9.8976791,201.85,201.8,0.71]
[1753210266939,9.8976791,201.81,201.76,4.95638382]
[1753210267162,9.8976791,201.8,201.76,4.95638382]
[1753210267331,36.14,201.81,201.76,14.85406292]
[1753210267658,36.14,201.81,201.78,9.8976791]
[1753210267839,36.14,201.84,201.79,10.6076791]
[1753210268240,46.0376791,201.84,201.79,0.71]
[1753210268705,9.8976791,201.8,201.76,4.95638382]
[1753210268966,0.72,201.83,201.78,4.95589255]
[1753210268967,10.6176791,201.83,201.78,4.95589255]
[1753210270059,9.8976791,201.82,201.78,4.95589255]
[1753210271448,9.8976791,201.82,201.77,5.66610018]
[1753210272871,46.0376791,201.84,201.79,4.95564695]
[1753210273382,36.14,201.84,201.8,0.71]
[1753210273680,36.14,201.84,201.81,0.71]
[1753210274063,36.14,201.84,201.79,4.95564695]
[1753210274064,36.12,201.87,201.82,10.6076791]
[1753210274256,46.0176791,201.87,201.8,9.8976791]
[1753210274561,9.8976791,201.86,201.8,9.8976791]
[1753210274955,9.8976791,201.85,201.79,5.66564695]
[1753210275159,9.8976791,201.8,201.75,0.71]
[1753210275467,0.72,201.84,201.72,10.6076791]
[1753210275468,9.8976791,201.78,201.72,10.6076791]
[1753210275972,9.8976791,201.78,201.72,0.71]
[1753210276170,36.76,201.81,201.72,0.71]
[1753210276171,9.8976791,201.77,201.72,0.71]
[1753210276345,9.8976791,201.76,201.71,4.95761241]
[1753210276551,9.8976791,201.75,201.71,4.95761241]
[1753210277775,9.8976791,201.75,201.71,5.61761241]
[1753210277980,9.8976791,201.76,201.71,5.61761241]
[1753210278474,9.8976791,201.75,201.71,4.95761241]
[1753210279078,9.8976791,201.75,201.69,4.98810402]
[1753210279388,9.8976791,201.73,201.69,4.98810402]
[1753210279681,9.8976791,201.73,201.69,0.03]
[1753210279882,36.04,201.77,201.7,10.5576791]
[1753210280061,9.8976791,201.75,201.7,0.66]
[1753210280456,9.8976791,201.74,201.7,0.66]
[1753210281087,36.04,201.77,201.72,9.8976791]
[1753210281275,36.04,201.77,201.73,0.66]
[1753210281456,36.04,201.77,201.71,4.95737167]
[1753210281457,9.8976791,201.76,201.71,4.95737167]
[1753210281658,9.8976791,201.74,201.69,0.69]
[1753210281866,9.8976791,201.72,201.69,0.03]
[1753210282075,9.8976791,201.71,201.69,0.03]
[1753210282680,45.9376791,201.73,201.7,0.66]
[1753210282857,45.9376791,201.73,201.69,4.98791194]
[1753210283056,36.04,201.73,201.69,5.64791194]
[1753210283270,36.04,201.73,201.69,15.54559104]
[1753210283664,36.04,201.73,201.69,5.64791194]
[1753210284087,26.0,201.78,201.71,9.8976791]
[1753210284267,0.76,201.82,201.73,9.8976791]
[1753210284585,9.8976791,201.8,201.74,9.8976791]
[1753210284881,9.8976791,201.77,201.71,9.8976791]
[1753210285081,9.8976791,201.75,201.7,0.66]
[1753210285388,36.1,201.82,201.74,9.8976791]
[1753210285559,36.1,201.82,201.77,9.8976791]
[1753210285761,36.1,201.82,201.73,36.04]
[1753210285762,10.5976791,201.81,201.73,36.7]
[1753210286065,10.5976791,201.81,201.74,9.8976791]
[1753210286567,36.1,201.82,201.73,75.6476791]
[1753210286778,9.8976791,201.79,201.73,36.04]
[1753210286998,36.1,201.82,201.71,18.96904344]
[1753210286999,9.8976791,201.78,201.72,9.8976791]
[1753210287286,9.8976791,201.76,201.71,4.95761241]
[1753210287462,9.8976791,201.74,201.7,4.95783658]
[1753210287662,9.8976791,201.75,201.7,4.95783658]
[1753210288290,10.5976791,201.76,201.7,4.95783658]
[1753210288672,9.8976791,201.76,201.7,14.85551568]
[1753210288873,9.8976791,201.76,201.7,4.95783658]
[1753210289282,36.04,201.77,201.71,10.5576791]
[1753210290189,26.0,201.81,201.73,9.8976791]
[1753210290378,0.06,201.82,201.78,9.8976791]
[1753210290580,0.06,201.82,201.77,9.8976791]
[1753210290909,0.06,201.82,201.81,9.8976791]
[1753210291392,0.06,201.82,201.81,15.51283493]
[1753210291566,0.06,201.82,201.81,4.95515583]
[1753210292086,0.06,201.82,201.8,14.85303759]
[1753210292275,0.06,201.82,201.81,10.5576791]
[1753210292783,0.06,201.82,201.81,40.2676791]
[1753210293285,0.06,201.82,201.81,9.8976791]
[1753210293494,0.06,201.82,201.8,9.8976791]
[1753210293984,0.06,201.82,201.77,35.8976791]
[1753210294191,9.9576791,201.82,201.76,4.95638382]
[1753210294991,9.8976791,201.77,201.71,5.6174734]
[1753210295181,9.8976791,201.76,201.71,5.6174734]
[1753210295482,9.8976791,201.77,201.71,5.6174734]
[1753210295680,6.0319,201.81,201.7,9.8976791]
[1753210295681,9.8976791,201.75,201.7,4.95777249]
[1753210295912,10.5976791,201.75,201.7,4.95777249]
[1753210296283,10.5976791,201.74,201.68,36.0]
[1753210296509,10.5976791,201.74,201.68,45.8976791]
[1753210296816,10.5976791,201.74,201.68,50.85602232]
[1753210297022,9.8976791,201.73,201.68,40.95834322]
[1753210297385,9.8976791,201.73,201.69,4.98799836]
[1753210297802,9.8976791,201.74,201.69,4.98799836]
[1753210298624,27.647,201.78,201.71,9.8976791]
[1753210298916,6.0319,201.81,201.7,0.66]
[1753210298917,9.8976791,201.81,201.75,9.8976791]
[1753210299085,0.06,201.82,201.8,9.8976791]
[1753210299394,0.06,201.82,201.81,14.85283493]
[1753210299592,0.06,201.82,201.81,4.95515583]
[1753210299979,0.06,201.82,201.8,10.5576791]
[1753210300182,0.06,201.82,201.8,9.8976791]
[1753210300783,0.06,201.82,201.79,9.8976791]
[1753210301584,0.06,201.82,201.8,4.95540138]
[1753210302224,0.06,201.82,201.81,9.8976791]
[1753210302518,0.06,201.82,201.81,10.5576791]
[1753210303197,0.06,201.82,201.81,27.34236307]
[1753210303620,0.06,201.87,201.81,27.34236307]
[1753210303621,0.06,201.87,201.82,48.05268397]
[1753210303827,0.06,201.87,201.86,9.8976791]
[1753210304222,0.06,201.87,201.86,10.5576791]
[1753210305006,0.06,201.88,201.86,32.29629153]
[1753210305223,0.06,201.88,201.87,63.77773137]
[1753210305524,0.06,201.9,201.87,63.77773137]
[1753210305525,1e-08,201.9,201.89,42.78468397]
[1753210305824,1e-08,201.9,201.89,82.8876823]
[1753210306121,1e-08,201.9,201.89,83.5476823]
[1753210306326,1e-08,201.91,201.9,46.49468397]
[1753210306507,1e-08,201.91,201.9,57.05236307]
[1753210306828,0.06,201.96,201.9,57.05236307]
[1753210307009,0.06,201.96,201.93,26.68236307]
[1753210307528,0.06,201.96,201.93,27.39236307]
[1753210307714,42.3246,202.08,201.93,27.39236307]
[1753210307715,9.8976791,202.07,202.0,9.8976791]
[1753210308028,46.29243682,202.08,201.91,0.71]
[1753210308029,16.78468397,202.01,201.91,0.71]
[1753210308198,9.8976791,201.98,201.92,9.8976791]
[1753210308809,9.8976791,201.97,201.9,9.8976791]
[1753210309509,48.47523685,202.02,201.9,9.8976791]
[1753210309510,36.1,202.02,201.96,9.8976791]
[1753210309715,35.8976791,202.03,201.96,9.8976791]
[1753210309928,4.94955404,202.04,201.95,0.71]
[1753210309929,9.8976791,202.01,201.95,10.6076791]
[1753210310134,9.8976791,202.01,201.95,0.71]
[1753210310429,9.8976791,202.0,201.95,0.71]
[1753210310808,9.8976791,201.99,201.95,0.71]
[1753210311016,9.8976791,201.99,201.93,14.84975097]
[1753210311239,14.90852652,201.98,201.93,4.95207187]
[1753210311407,14.90852652,201.99,201.94,0.71]
[1753210311726,14.90852652,202.0,201.94,0.71]
[1753210312027,14.90852652,201.98,201.94,0.71]
[1753210312225,14.90852652,201.98,201.93,4.95207187]
[1753210312744,14.90852652,201.99,201.94,0.71]
[1753210314635,14.90852652,202.0,201.94,14.90852652]
[1753210314810,0.26,201.99,201.93,19.86059839]
[1753210315132,14.90852652,202.0,201.93,20.57059839]
[1753210315899,0.26,202.03,201.93,20.57059839]
[1753210315900,14.90852652,201.99,201.93,4.95207187]
[1753210317739,14.90852652,201.99,201.93,19.86059839]
[1753210318316,14.90852652,201.99,201.93,4.95207187]
[1753210319255,14.90852652,202.0,201.94,0.71]
[1753210319742,14.90852652,201.99,201.94,0.71]
[1753210320543,14.90852652,201.99,201.95,4.95172072]
[1753210320752,1.541,202.06,201.95,4.95172072]
[1753210320753,11.41313922,202.08,201.96,53.45468397]
[1753210321069,14.90852652,202.04,201.98,14.90852652]
[1753210321555,14.90852652,202.02,201.96,51.57852652]
[1753210321934,14.90852652,202.03,201.97,4.95123038]
[1753210322145,32.60676157,202.08,201.97,4.95123038]
[1753210322146,6.4646,202.08,202.01,14.90852652]
[1753210322336,0.2,202.1,202.03,14.90852652]
[1753210322645,15.10852652,202.1,202.04,14.90852652]
[1753210323033,14.96852652,202.06,202.0,0.71]
[1753210323227,14.90852652,202.02,201.97,4.95123038]
[1753210323545,0.06,202.06,201.95,15.61852652]
[1753210323546,14.90852652,202.0,201.95,36.67]
[1753210323922,14.90852652,202.02,201.96,15.61852652]
[1753210324124,31.00909186,202.06,201.96,15.61852652]
[1753210324125,0.06,202.06,201.96,15.61852652]
[1753210324323,14.90852652,202.02,201.96,0.71]
[1753210324543,14.90852652,202.02,201.96,15.61852652]
[1753210325057,14.90852652,202.03,201.96,15.61852652]
[1753210325263,5.26911325,202.06,201.96,15.61852652]
[1753210325264,14.90852652,202.02,201.96,15.61852652]
[1753210326135,14.90852652,202.03,201.97,4.95123038]
[1753210327747,40.90852652,202.05,201.99,14.90852652]
[1753210327947,40.96852652,202.06,202.0,0.71]
[1753210328492,40.96852652,202.06,202.04,26.0]
[1753210328493,0.06,202.06,202.04,26.0]
[1753210328816,0.06,202.06,202.02,15.61852652]
[1753210328937,0.06,202.06,202.04,14.90852652]
[1753210329132,0.06,202.06,202.03,26.0]
[1753210329337,14.90852652,202.05,202.01,4.95024998]
[1753210330351,0.06,202.06,201.96,36.08]
[1753210330352,14.90852652,202.02,201.96,36.08]
[1753210330559,14.90852652,202.03,201.97,19.8597569]
[1753210330869,0.32,202.06,201.98,29.68]
[1753210330870,14.90852652,202.04,201.98,29.68]
[1753210331080,0.32,202.06,201.99,14.90852652]
[1753210331247,15.22852652,202.06,202.0,14.90852652]
[1753210331438,0.06,202.06,202.03,14.90852652]
[1753210331640,0.06,202.06,202.03,15.61852652]
[1753210332046,0.06,202.06,202.04,15.61852652]
[1753210332442,0.06,202.06,202.05,15.61852652]
[1753210333153,0.06,202.06,202.05,10.57834026]
[1753210333364,0.2,202.1,202.07,29.68]
[1753210333571,0.2,202.1,202.09,9.86834026]
[1753210333953,0.2,202.1,202.09,10.57834026]
[1753210334482,0.2,202.1,201.99,0.14216157]
[1753210334483,10.32834026,202.1,202.0,0.71]
[1753210334656,9.86834026,202.04,201.98,29.68]
[1753210334843,9.86834026,202.02,201.99,4.95074013]
[1753210335044,9.86834026,202.01,201.99,4.95074013]
[1753210335356,9.86834026,202.01,201.97,0.71]
[1753210335664,9.86834026,201.98,201.91,4.95270169]
[1753210335845,9.86834026,201.94,201.91,4.95270169]
[1753210336045,9.86834026,201.96,201.91,4.95270169]
[1753210336244,0.26,202.0,201.92,0.71]
[1753210336447,0.14216157,202.02,201.92,0.71]
[1753210336651,9.86834026,201.98,201.92,0.71]
[1753210336871,9.86834026,201.97,201.92,0.71]
[1753210337075,9.86834026,201.96,201.92,0.71]
[1753210337244,9.86834026,201.98,201.92,0.71]
[1753210337444,9.86834026,202.0,201.94,4.95196593]
[1753210337661,9.86834026,201.98,201.94,4.95196593]
[1753210337883,0.40216157,202.02,201.94,4.95196593]
[1753210337884,9.86834026,201.97,201.94,4.95196593]
[1753210338173,9.86834026,201.95,201.89,0.03]
[1753210338344,0.26,201.96,201.89,0.03]
[1753210338345,9.86834026,201.91,201.89,0.03]
[1753210338545,9.86834026,201.92,201.89,0.03]
[1753210340375,9.86834026,201.93,201.89,0.03]
[1753210340747,9.86834026,201.9,201.89,0.03]
[1753210341184,9.86834026,201.91,201.89,0.03]
[1753210342167,26.0,201.95,201.89,0.03]
[1753210342168,9.86834026,201.9,201.89,0.03]
[1753210342363,10.12834026,201.9,201.89,0.03]
[1753210342673,10.27050183,201.9,201.89,0.03]
[1753210344464,27.0551858,201.9,201.89,0.03]
[1753210344656,10.27050183,201.9,201.89,0.03]
[1753210344856,15.22344883,201.9,201.89,0.03]
[1753210345087,32.0081328,201.9,201.89,0.03]
[1753210347889,0.40216157,201.9,201.89,0.03]
[1753210348087,26.0,201.87,201.84,0.03]
[1753210348382,9.86834026,201.85,201.84,0.03]
[1753210348793,10.12834026,201.85,201.84,0.03]
[1753210348995,15.08251415,201.85,201.84,0.03]
[1753210349361,36.01050183,201.85,201.84,0.03]
[1753210350179,36.27050183,201.85,201.84,0.03]
[1753210350876,41.22467572,201.85,201.84,0.03]
[1753210352001,36.27050183,201.85,201.84,0.03]
[1753210352792,36.01050183,201.85,201.84,0.03]
[1753210353379,40.96467572,201.85,201.84,0.03]
[1753210353705,31.74935969,201.85,201.84,0.03]
[1753210353992,31.74935969,201.85,201.8,0.03]
[1753210353993,0.14216157,201.81,201.8,0.03]
[1753210354202,45.99050183,201.81,201.8,0.03]
[1753210354376,46.25050183,201.81,201.8,0.03]
[1753210354993,51.20565766,201.81,201.8,0.03]
[1753210355872,26.0,201.85,201.8,0.03]
[1753210356092,9.86834026,201.83,201.8,0.74]
[1753210356291,45.84834026,201.83,201.8,0.74]
[1753210356496,9.86834026,201.86,201.81,0.71]
[1753210356695,9.86834026,201.86,201.8,0.03]
[1753210356696,35.98,201.84,201.82,0.71]
[1753210356906,35.98,201.88,201.83,9.86834026]
[1753210357108,15.96044026,201.96,201.85,9.86834026]
[1753210357109,35.98,201.91,201.85,9.86834026]
[1753210357291,35.98,201.91,201.86,9.86834026]
[1753210357497,35.98,201.91,201.87,0.71]
[1753210357885,9.86834026,201.88,201.84,5.66441934]
[1753210358091,9.86834026,201.87,201.84,5.66441934]
[1753210358800,9.86834026,201.85,201.82,4.95466937]
[1753210359011,36.02,201.88,201.81,4.95511623]
[1753210359012,9.86834026,201.84,201.81,4.95511623]
[1753210359181,45.88834026,201.85,201.81,4.95511623]
[1753210359609,36.02,201.85,201.82,0.71]
[1753210359995,36.02,201.85,201.81,4.95511623]
[1753210359996,36.02,201.85,201.81,14.82345649]
[1753210360316,36.02,201.85,201.83,0.71]
[1753210360521,36.02,201.85,201.84,0.71]
[1753210360722,45.88834026,201.89,201.84,0.71]
[1753210361100,45.88834026,201.89,201.85,0.71]
[1753210362098,9.86834026,201.88,201.84,4.95441934]
[1753210362300,45.88834026,201.89,201.84,4.95441934]
[1753210362490,45.88834026,201.89,201.85,0.71]
[1753210362693,36.02,201.89,201.86,0.71]
[1753210362997,36.02,201.89,201.87,0.71]
[1753210363205,36.02,201.89,201.88,4.95343768]
[1753210363411,6.4713,202.07,201.91,16.78468397]
[1753210363594,9.86834026,201.95,201.92,0.71]
[1753210363794,9.86834026,201.95,201.89,1.5925]
[1753210363795,9.86834026,201.95,201.89,2.3025]
[1753210363994,45.92834026,201.98,201.92,9.86834026]
[1753210364310,45.92834026,201.98,201.93,0.71]
[1753210364514,9.86834026,201.97,201.93,0.71]
[1753210364709,45.92834026,201.98,201.94,4.95196593]
[1753210364910,9.86834026,201.96,201.89,31.2725]
[1753210365116,9.86834026,201.94,201.9,0.71]
[1753210365493,9.86834026,201.94,201.88,4.95343768]
[1753210365801,0.06,201.89,201.88,4.95343768]
[1753210366106,0.06,201.89,201.88,5.66343768]
[1753210366805,0.06,201.89,201.84,0.74]
[1753210367212,0.06,201.89,201.85,0.71]
[1753210367608,0.06,201.89,201.84,9.89834026]
[1753210367809,9.86834026,201.88,201.84,0.03]
[1753210368935,0.06,201.89,201.86,9.86834026]
[1753210369227,0.06,201.89,201.86,0.68]
[1753210370020,0.06,201.89,201.84,9.89834026]
[1753210370408,0.06,201.89,201.85,5.63417389]
[1753210370607,0.06,201.89,201.86,9.86834026]
[1753210370819,0.06,201.89,201.87,9.86834026]
[1753210371017,0.06,201.89,201.87,10.54834026]
[1753210371234,0.06,201.89,201.87,9.86834026]
[1753210371537,0.06,201.89,201.88,0.68]
[1753210372434,0.06,201.89,201.88,5.63343768]
[1753210373013,0.06,201.89,201.88,0.68]
[1753210373942,0.06,201.89,201.88,5.63343768]
[1753210374358,0.06,201.89,201.88,15.50177794]
[1753210377728,0.06,201.89,201.88,5.63343768]
[1753210377929,0.06,201.89,201.87,4.95367875]
[1753210378142,0.06,201.89,201.87,5.63367875]
[1753210379148,0.06,201.89,201.87,14.82201901]
[1753210379346,0.06,201.89,201.88,0.68]
[1753210379947,0.06,201.89,201.87,4.95367875]
[1753210380639,0.06,201.89,201.86,4.95392846]
[1753210380950,0.06,201.89,201.84,48.39556884]
[1753210380951,9.92834026,201.89,201.84,0.03]
[1753210381149,0.06,201.89,201.84,14.85271693]
[1753210381352,9.92834026,201.89,201.85,0.68]
[1753210381560,9.86834026,201.86,201.84,0.03]
[1753210381766,9.86834026,201.87,201.84,0.03]
[1753210382258,9.86834026,201.85,201.84,0.03]
[1753210384139,10.01050183,201.85,201.84,0.03]
[1753210384337,40.87400005,201.86,201.84,0.03]
[1753210384541,9.86834026,201.85,201.84,0.03]
[1753210385248,35.92,201.86,201.84,0.03]
[1753210385556,10.27050183,201.85,201.84,0.03]
[1753210385756,0.14216157,201.85,201.84,0.03]
[1753210385961,9.86834026,201.85,201.84,0.03]
[1753210386367,45.78834026,201.86,201.84,0.03]
[1753210386577,35.92,201.86,201.84,0.03]
[1753210386875,35.86834026,201.88,201.84,0.03]
[1753210387241,35.86834026,201.88,201.85,0.68]
[1753210387464,45.84834026,201.89,201.85,0.68]
[1753210387650,35.98,201.89,201.86,0.68]
[1753210387865,35.98,201.89,201.87,0.68]
[1753210388168,35.98,201.89,201.88,0.68]
[1753210388169,0.06,201.89,201.88,0.68]
[1753210389219,0.06,201.89,201.88,5.63343768]
[1753210390303,0.06,201.89,201.88,15.50177794]
[1753210390500,0.06,201.89,201.88,32.28646191]
[1753210390873,0.06,201.94,201.89,16.78468397]
[1753210391078,0.06,201.94,201.93,9.86834026]
[1753210391273,0.06,201.94,201.93,14.82055142]
[1753210391491,0.06,201.94,201.93,15.50055142]
[1753210392389,0.06,201.98,201.94,16.78468397]
[1753210392591,0.06,201.98,201.97,26.65302423]
[1753210392804,45.78834026,202.07,201.97,26.65302423]
[1753210393017,45.78834026,202.07,202.01,9.86834026]
[1753210393187,45.78834026,202.07,202.02,4.95000495]
[1753210393506,45.78834026,202.07,202.03,0.68]
[1753210393725,45.78834026,202.07,202.02,5.63000495]
[1753210394295,35.92,202.07,202.02,5.63000495]
[1753210395206,9.86834026,202.03,201.95,12.37881565]
[1753210395397,9.86834026,202.02,201.96,10.54834026]
[1753210395707,9.86834026,202.03,201.97,9.86834026]
[1753210396090,9.86834026,202.03,201.98,0.68]
[1753210396307,9.86834026,202.04,201.99,5.63057633]
[1753210396511,9.86834026,202.03,201.99,4.95057633]
[1753210396709,9.86834026,202.03,201.98,4.95096389]
[1753210396904,9.86834026,202.02,201.99,0.68]
[1753210397101,0.32,202.06,201.99,0.68]
[1753210397309,61.92,202.07,201.99,0.68]
[1753210397310,9.86834026,202.04,201.99,0.68]
[1753210397688,9.86834026,202.04,202.0,0.66]
[1753210397887,71.78834026,202.07,202.01,10.52834026]
[1753210398091,0.2,202.1,202.04,9.86834026]
[1753210398305,0.2,202.1,202.05,15.47751601]
[1753210398523,0.2,202.1,202.05,5.60917575]
[1753210398688,0.2,202.1,202.06,0.66]
[1753210399124,0.2,202.1,202.07,10.52834026]
[1753210399497,0.2,202.1,202.08,10.52834026]
[1753210399907,0.2,202.1,202.05,17.3223507]
[1753210399908,0.2,202.1,202.09,0.66]
[1753210400921,0.2,202.1,202.05,10.52834026]
[1753210401120,0.2,202.1,202.05,15.47761024]
[1753210401427,0.2,202.1,202.06,0.66]
[1753210401909,10.06834026,202.1,202.05,4.94926998]
[1753210402111,9.86834026,202.09,202.05,0.66]
[1753210402314,9.86834026,202.09,202.03,4.94973841]
[1753210402503,0.2,202.1,202.07,9.86834026]
[1753210402709,0.2,202.1,202.09,9.86834026]
[1753210403020,0.2,202.1,202.08,0.66]
[1753210403825,0.2,202.1,202.08,10.52834026]
[1753210404201,0.2,202.1,202.09,10.52834026]
[1753210404406,0.2,202.1,202.09,15.47663062]
[1753210404626,0.2,202.1,202.09,5.60829036]
[1753210404820,0.2,202.1,202.08,4.94849271]
[1753210405297,0.2,202.1,202.08,5.60849271]
[1753210405899,0.2,202.1,202.09,0.66]
[1753210406626,0.2,202.1,202.09,15.47663062]
[1753210407130,0.2,202.1,202.09,61.94131459]
[1753210407428,0.06,202.11,202.1,46.46468397]
[1753210407595,0.06,202.11,202.1,56.99302423]
[1753210407806,0.06,202.15,202.1,56.99302423]
[1753210408018,0.06,202.15,202.09,18.93811627]
[1753210408019,0.06,202.15,202.14,9.86834026]
[1753210408247,0.06,202.15,202.14,56.33302423]
[1753210408550,0.06,202.19,202.18,46.46468397]
[1753210408748,0.06,202.19,202.18,56.33302423]
[1753210408939,2.46994641,202.36,202.18,56.33302423]
[1753210408940,2.58051463,202.38,202.25,26.0]
[1753210409251,10.0,202.49,202.25,26.0]
[1753210409252,6.2705,202.53,202.37,9.86834026]
[1753210409411,6.2705,202.53,202.36,1.5942]
[1753210409412,4.93802775,202.51,202.45,9.86834026]
[1753210409724,6.2705,202.53,202.46,0.66]
[1753210409931,4.59601919,202.61,202.46,0.66]
[1753210409932,4.93583415,202.6,202.46,0.66]
[1753210410266,0.66,202.59,202.53,26.0]
[1753210410408,6.0705,202.64,202.55,26.0]
[1753210410409,0.66,202.62,202.55,26.0]
[1753210410618,9.86834026,202.59,202.55,26.0]
[1753210410844,0.66,202.58,202.48,0.66]
[1753210411018,0.66,202.58,202.47,4.9390033]
[1753210411352,0.66,202.58,202.47,16.78468397]
[1753210411516,9.86834026,202.56,202.44,0.49397352]
[1753210411705,3.23498164,202.55,202.45,16.92684554]
[1753210412012,0.66,202.54,202.49,16.78468397]
[1753210412223,10.52834026,202.54,202.47,16.78468397]
[1753210412507,26.0,202.49,202.43,0.49399792]
[1753210412706,26.0,202.49,202.29,37.2664]
[1753210412707,0.66,202.48,202.39,0.14216157]
[1753210412945,26.0,202.47,202.44,9.86834026]
[1753210413160,26.0,202.47,202.43,14.83581816]
[1753210413444,37.82,202.53,202.46,14.83581816]
[1753210413445,0.14216157,202.52,202.46,14.83581816]
[1753210413734,0.14216157,202.52,202.44,0.66]
[1753210413735,14.83581816,202.47,202.44,0.66]
[1753210413951,0.14216157,202.52,202.41,26.0]
[1753210414234,37.82,202.53,202.45,0.66]
[1753210414410,0.14216157,202.52,202.45,0.66]
[1753210414612,37.82,202.53,202.45,0.66]
[1753210414613,14.83581816,202.5,202.46,1.18535095]
[1753210414825,14.83581816,202.51,202.46,1.18535095]
[1753210415010,14.83581816,202.49,202.46,1.18535095]
[1753210415315,42.75763288,202.53,202.46,1.18535095]
[1753210415518,14.83581816,202.47,202.46,1.18535095]
[1753210416744,15.49581816,202.47,202.46,1.18535095]
[1753210417049,0.66,202.5,202.46,1.18535095]
[1753210417332,14.83581816,202.55,202.48,14.83581816]
[1753210417709,37.76,202.59,202.49,14.83581816]
[1753210417910,14.83581816,202.55,202.48,31.62050213]
[1753210418212,14.83581816,202.55,202.49,1.04593279]
[1753210418422,38.42,202.59,202.49,16.54175095]
[1753210418622,38.42,202.59,202.5,14.83581816]
[1753210418818,38.42,202.59,202.51,14.83581816]
[1753210418819,14.83581816,202.57,202.51,14.83581816]
[1753210419019,14.83581816,202.57,202.51,15.88164766]
[1753210419217,14.83581816,202.57,202.52,1.04577786]
[1753210419417,14.83581816,202.57,202.52,1.70577786]
[1753210419815,37.7,202.6,202.52,1.70577786]
[1753210419816,14.83581816,202.58,202.53,1.04572622]
[1753210420017,14.83581816,202.59,202.53,15.88154438]
[1753210420238,37.7,202.6,202.53,15.88154438]
[1753210420556,4.93507317,202.64,202.56,14.83581816]
[1753210420862,37.72,202.68,202.61,14.83581816]
[1753210421021,52.55581816,202.68,202.62,14.83581816]
[1753210421353,57.48981471,202.68,202.62,1.04526173]
[1753210421531,37.72,202.68,202.63,1.04521014]
[1753210421720,52.55581816,202.68,202.63,1.70521014]
[1753210422121,52.55581816,202.68,202.64,1.04515856]
[1753210422341,37.72,202.68,202.64,1.04515856]
[1753210422537,4.93361085,202.7,202.64,1.04515856]
[1753210422754,14.83581816,202.7,202.64,27.04515856]
[1753210423140,14.83581816,202.7,202.65,1.04510699]
[1753210423333,42.59321349,202.71,202.65,1.04510699]
[1753210423652,14.83581816,202.7,202.65,1.04510699]
[1753210423844,14.83581816,202.67,202.65,1.04510699]
[1753210424257,0.66,202.69,202.65,1.04510699]
[1753210424258,14.83581816,202.68,202.65,1.04510699]
[1753210424633,19.76954989,202.69,202.65,1.04510699]
[1753210424954,14.83581816,202.68,202.65,1.04510699]
[1753210425152,4.93373173,202.69,202.65,1.04510699]
[1753210425354,14.83581816,202.68,202.65,1.04510699]
[1753210425546,19.76954989,202.69,202.65,1.04510699]
[1753210425743,14.83581816,202.68,202.65,1.04510699]
[1753210426760,19.76994753,202.67,202.65,1.04510699]
[1753210427065,4.93412937,202.67,202.65,1.04510699]
[1753210427362,32.4126637,202.66,202.54,14.83581816]
[1753210427537,14.83581816,202.58,202.55,14.79]
[1753210427857,37.52,202.58,202.55,0.96278057]
[1753210428060,37.52,202.58,202.56,0.7]
[1753210428959,37.52,202.58,202.55,15.79859873]
[1753210429260,0.14216157,202.63,202.56,15.53581816]
[1753210429431,37.52,202.62,202.56,15.53581816]
[1753210429634,52.35581816,202.62,202.56,15.53581816]
[1753210430059,37.52,202.62,202.56,15.53581816]
[1753210430744,14.83581816,202.61,202.55,15.79859873]
[1753210430942,4.93559054,202.61,202.55,15.79859873]
[1753210431551,19.7714087,202.61,202.55,15.79859873]
[1753210431756,57.2911798,202.62,202.55,15.79859873]
[1753210431958,14.83581816,202.61,202.55,15.79859873]
[1753210432260,42.45536164,202.62,202.57,14.83581816]